[Event "Titled Tuesday Blitz June 13 Late 2023"]
[White "Seemann, Jakub"]
[Black "Maksimovic, Bojan"]
[WhiteFideId "21874697"]
[BlackFideId "14408120"]
[WhiteElo "2364"]
[BlackElo "2457"]
[Result "0-1"]
[Round "6"]
[TimeControl "180+2"]
[Date "2023.06.13"]
[WhiteClock "0:00:04"]
[BlackClock "0:00:06"]
[Board "22"]

1. d4 {[%clk 0:02:59]}  Nf6 {[%clk 0:03:00]} 2. c4 {[%clk 0:03:00]}  g6 {[%clk 0:03:00]} 3. Nc3 {[%clk 0:02:58]}  Bg7 {[%clk 0:03:01]} 4. g3 {[%clk 0:02:56]}  O-O {[%clk 0:03:00]} 5. Bg2 {[%clk 0:02:56]}  d6 {[%clk 0:03:00]} 6. Nf3 {[%clk 0:02:56]}  Nc6 {[%clk 0:03:00]} 7. O-O {[%clk 0:02:57]}  a6 {[%clk 0:03:00]} 8. d5 {[%clk 0:02:55]}  Na5 {[%clk 0:03:00]} 9. b3 {[%clk 0:02:53]}  c5 {[%clk 0:02:52]} 10. dxc6 {[%clk 0:02:54]}  bxc6 {[%clk 0:02:51]} 11. Bb2 {[%clk 0:02:54]}  Rb8 {[%clk 0:02:51]} 12. Nd4 {[%clk 0:02:46]}  c5 {[%clk 0:02:47]} 13. Nc2 {[%clk 0:02:45]}  Nxc4 {[%clk 0:02:46]} 14. bxc4 {[%clk 0:02:37]}  Rxb2 {[%clk 0:02:47]} 15. Rb1 {[%clk 0:02:33]}  Rxb1 {[%clk 0:02:37]} 16. Qxb1 {[%clk 0:02:34]}  Bf5 {[%clk 0:02:35]} 17. Qb3 {[%clk 0:02:32]}  Qb8 {[%clk 0:02:25]} 18. Qa4 {[%clk 0:02:21]}  Bxc2 {[%clk 0:02:23]} 19. Qxc2 {[%clk 0:02:20]}  Qb4 {[%clk 0:02:24]} 20. Nd5 {[%clk 0:02:14]}  Nxd5 {[%clk 0:02:23]} 21. Bxd5 {[%clk 0:02:15]}  e6 {[%clk 0:02:24]} 22. Be4 {[%clk 0:02:08]}  Rb8 {[%clk 0:01:54]} 23. Rb1 {[%clk 0:02:06]}  Bb2 {[%clk 0:01:54]} 24. h4 {[%clk 0:02:00]}  Qa3 {[%clk 0:01:49]} 25. h5 {[%clk 0:01:58]}  Kg7 {[%clk 0:01:46]} 26. Qd2 {[%clk 0:01:50]}  Qxa2 {[%clk 0:01:22]} 27. h6+ {[%clk 0:01:47]}  Kg8 {[%clk 0:01:18]} 28. Qxd6 {[%clk 0:01:47]}  Qb3 {[%clk 0:01:12]} 29. Qxc5 {[%clk 0:01:20]}  Qc3 {[%clk 0:00:46]} 30. Qa7 {[%clk 0:00:53]}  Qe5 {[%clk 0:00:37]} 31. Bd3 {[%clk 0:00:36]}  Rf8 {[%clk 0:00:31]} 32. e3 {[%clk 0:00:23]}  Qc3 {[%clk 0:00:25]} 33. Bf1 {[%clk 0:00:08]}  Qc2 {[%clk 0:00:21]} 34. Rxb2 {[%clk 0:00:09]}  Qxb2 {[%clk 0:00:22]} 35. Qxa6 {[%clk 0:00:09]}  Qe5 {[%clk 0:00:21]} 36. Qb6 {[%clk 0:00:08]}  Rc8 {[%clk 0:00:20]} 37. Qb7 {[%clk 0:00:09]}  Rf8 {[%clk 0:00:15]} 38. Qe7 {[%clk 0:00:09]}  Rc8 {[%clk 0:00:07]} 39. Qh4 {[%clk 0:00:07]}  Qh5 {[%clk 0:00:05]} 40. Qf4 {[%clk 0:00:07]}  Qf5 {[%clk 0:00:04]} 41. Qd4 {[%clk 0:00:07]}  e5 {[%clk 0:00:03]} 42. Qd6 {[%clk 0:00:07]}  Qe6 {[%clk 0:00:03]} 43. Qd2 {[%clk 0:00:04]}  g5 {[%clk 0:00:04]} 44. c5 {[%clk 0:00:05]}  Qxh6 {[%clk 0:00:04]} 45. Bg2 {[%clk 0:00:04]}  Rxc5 {[%clk 0:00:03]} 46. Bf3 {[%clk 0:00:03]}  Qf6 {[%clk 0:00:03]} 47. Kg2 {[%clk 0:00:03]}  Kg7 {[%clk 0:00:04]} 48. Qd7 {[%clk 0:00:03]}  Rc2 {[%clk 0:00:03]} 49. Qd3 {[%clk 0:00:01]}  Rb2 {[%clk 0:00:03]} 50. Qf1 {[%clk 0:00:02]}  h6 {[%clk 0:00:02]} 51. Be4 {[%clk 0:00:03]}  Rb6 {[%clk 0:00:03]} 52. Qd3 {[%clk 0:00:03]}  Rb4 {[%clk 0:00:03]} 53. Bf5 {[%clk 0:00:02]}  h5 {[%clk 0:00:03]} 54. Be4 {[%clk 0:00:03]}  h4 {[%clk 0:00:03]} 55. gxh4 {[%clk 0:00:03]}  gxh4 {[%clk 0:00:04]} 56. Qd5 {[%clk 0:00:03]}  Qg5+ {[%clk 0:00:04]} 57. Kf3 {[%clk 0:00:03]}  Rb6 {[%clk 0:00:05]} 58. Ke2 {[%clk 0:00:03]}  Rf6 {[%clk 0:00:06]} 59. Bf3 {[%clk 0:00:02]}  Qf5 {[%clk 0:00:06]} 60. Qe4 {[%clk 0:00:01]}  Qxe4 {[%clk 0:00:06]} 61. Bxe4 {[%clk 0:00:01]}  h3 {[%clk 0:00:07]} 62. Kf1 {[%clk 0:00:01]}  Kh6 {[%clk 0:00:06]} 63. Kg1 {[%clk 0:00:02]}  Kg5 {[%clk 0:00:06]} 64. f3 {[%clk 0:00:03]}  Kh4 {[%clk 0:00:07]} 65. Kh2 {[%clk 0:00:04]}  Rd6 {[%clk 0:00:06]} 66. f4 {[%clk 0:00:04]}  Rd2+ {[%clk 0:00:06]} 0-1


[Site "https://www.chess.com"]

[Event "Titled Tuesday Blitz June 13 Late 2023"]
[White "Schnaider, Ilan"]
[Black "Kravtsiv, Martyn"]
[WhiteFideId "169013"]
[BlackFideId "14113147"]
[WhiteElo "2224"]
[BlackElo "2695"]
[Result "0-1"]
[Round "6"]
[TimeControl "180+2"]
[Date "2023.06.13"]
[WhiteClock "0:00:01"]
[BlackClock "0:00:09"]
[Board "23"]

1. e4 {[%clk 0:03:00]}  e5 {[%clk 0:02:59]} 2. Nf3 {[%clk 0:03:01]}  Nc6 {[%clk 0:02:59]} 3. Bc4 {[%clk 0:03:01]}  Nf6 {[%clk 0:02:58]} 4. d3 {[%clk 0:03:00]}  Bc5 {[%clk 0:02:58]} 5. c3 {[%clk 0:03:00]}  O-O {[%clk 0:02:57]} 6. O-O {[%clk 0:02:59]}  d5 {[%clk 0:02:57]} 7. exd5 {[%clk 0:02:59]}  Nxd5 {[%clk 0:02:58]} 8. Re1 {[%clk 0:02:59]}  Bg4 {[%clk 0:02:56]} 9. h3 {[%clk 0:02:59]}  Bh5 {[%clk 0:02:56]} 10. Nbd2 {[%clk 0:02:59]}  Nb6 {[%clk 0:02:55]} 11. Bb3 {[%clk 0:02:59]}  Qxd3 {[%clk 0:02:38]} 12. Nxe5 {[%clk 0:02:59]}  Qf5 {[%clk 0:02:37]} 13. Nef3 {[%clk 0:02:48]}  Rae8 {[%clk 0:02:30]} 14. Rxe8 {[%clk 0:02:17]}  Rxe8 {[%clk 0:02:29]} 15. g4 {[%clk 0:01:54]}  Bxg4 {[%clk 0:02:16]} 16. hxg4 {[%clk 0:01:54]}  Qxg4+ {[%clk 0:02:17]} 17. Kh1 {[%clk 0:01:43]}  Bxf2 {[%clk 0:01:43]} 18. Nh2 {[%clk 0:00:58]}  Qxd1+ {[%clk 0:01:36]} 19. Bxd1 {[%clk 0:00:58]}  Re1+ {[%clk 0:01:36]} 20. Kg2 {[%clk 0:00:58]}  Rxd1 {[%clk 0:01:36]} 21. Kxf2 {[%clk 0:00:58]}  Ne5 {[%clk 0:01:21]} 22. Ke2 {[%clk 0:00:53]}  Rg1 {[%clk 0:01:11]} 23. Nhf3 {[%clk 0:00:36]}  Nxf3 {[%clk 0:01:10]} 24. Nxf3 {[%clk 0:00:36]}  Rh1 {[%clk 0:01:10]} 25. Kf2 {[%clk 0:00:26]}  h6 {[%clk 0:00:59]} 26. Ne1 {[%clk 0:00:26]}  g5 {[%clk 0:00:49]} 27. Be3 {[%clk 0:00:23]}  Nc4 {[%clk 0:00:49]} 28. Bd4 {[%clk 0:00:15]}  b6 {[%clk 0:00:33]} 29. Kg2 {[%clk 0:00:14]}  Rh4 {[%clk 0:00:32]} 30. Nf3 {[%clk 0:00:13]}  Rg4+ {[%clk 0:00:30]} 31. Kh3 {[%clk 0:00:11]}  Rf4 {[%clk 0:00:28]} 32. Kg3 {[%clk 0:00:11]}  c5 {[%clk 0:00:26]} 33. Bf2 {[%clk 0:00:08]}  Nxb2 {[%clk 0:00:25]} 34. Re1 {[%clk 0:00:07]}  Kf8 {[%clk 0:00:21]} 35. Re3 {[%clk 0:00:04]}  Nc4 {[%clk 0:00:19]} 36. Rd3 {[%clk 0:00:04]}  Ke7 {[%clk 0:00:18]} 37. Nd2 {[%clk 0:00:02]}  Ne5 {[%clk 0:00:16]} 38. Re3 {[%clk 0:00:02]}  f6 {[%clk 0:00:14]} 39. Bg1 {[%clk 0:00:01]}  Kf7 {[%clk 0:00:12]} 40. Bh2 {[%clk 0:00:02]}  Ra4 {[%clk 0:00:12]} 41. Ne4 {[%clk 0:00:01]}  Rxa2 {[%clk 0:00:12]} 42. Nd6+ {[%clk 0:00:01]}  Ke6 {[%clk 0:00:12]} 43. Nc4 {[%clk 0:00:02]}  h5 {[%clk 0:00:10]} 44. Nxe5 {[%clk 0:00:02]}  fxe5 {[%clk 0:00:10]} 45. Kh3 {[%clk 0:00:03]}  g4+ {[%clk 0:00:10]} 46. Kg3 {[%clk 0:00:03]}  h4+ {[%clk 0:00:09]} 47. Kxh4 {[%clk 0:00:04]}  Rxh2+ {[%clk 0:00:09]} 48. Kxg4 {[%clk 0:00:05]}  Rf2 {[%clk 0:00:09]} 49. Kg3 {[%clk 0:00:05]}  Rf4 {[%clk 0:00:10]} 50. Re2 {[%clk 0:00:05]}  b5 {[%clk 0:00:09]} 51. Ra2 {[%clk 0:00:05]}  b4 {[%clk 0:00:10]} 52. cxb4 {[%clk 0:00:05]}  cxb4 {[%clk 0:00:11]} 53. Rxa7 {[%clk 0:00:06]}  Kd5 {[%clk 0:00:10]} 54. Rc7 {[%clk 0:00:06]}  Kd4 {[%clk 0:00:10]} 55. Kg2 {[%clk 0:00:05]}  Kd3 {[%clk 0:00:10]} 56. Rb7 {[%clk 0:00:05]}  Kc3 {[%clk 0:00:10]} 57. Rb5 {[%clk 0:00:05]}  b3 {[%clk 0:00:08]} 58. Rxe5 {[%clk 0:00:06]}  b2 {[%clk 0:00:08]} 59. Rc5+ {[%clk 0:00:06]}  Rc4 {[%clk 0:00:08]} 60. Rb5 {[%clk 0:00:04]}  Rb4 {[%clk 0:00:09]} 61. Rc5+ {[%clk 0:00:04]}  Kb3 {[%clk 0:00:09]} 62. Rc1 {[%clk 0:00:01]}  bxc1=Q {[%clk 0:00:09]} 0-1


[Site "https://www.chess.com"]

[Event "Titled Tuesday Blitz June 13 Late 2023"]
[White "Rodrigue-Lemieux, Shawn"]
[Black "Koellner, Ruben Gideon"]
[WhiteFideId "2620049"]
[BlackFideId "12993093"]
[WhiteElo "2405"]
[BlackElo "2314"]
[Result "1-0"]
[Round "6"]
[TimeControl "180+2"]
[Date "2023.06.13"]
[WhiteClock "0:00:10"]
[BlackClock "0:00:08"]
[Board "24"]

1. d4 {[%clk 0:03:00]}  d6 {[%clk 0:02:59]} 2. Bf4 {[%clk 0:02:57]}  Nf6 {[%clk 0:02:59]} 3. e3 {[%clk 0:02:56]}  g6 {[%clk 0:02:59]} 4. h3 {[%clk 0:02:55]}  Bg7 {[%clk 0:02:59]} 5. Nd2 {[%clk 0:02:54]}  O-O {[%clk 0:02:59]} 6. Ngf3 {[%clk 0:02:53]}  Nc6 {[%clk 0:02:59]} 7. Be2 {[%clk 0:02:53]}  Nd7 {[%clk 0:03:00]} 8. Bh2 {[%clk 0:02:53]}  e5 {[%clk 0:03:00]} 9. c3 {[%clk 0:02:54]}  h6 {[%clk 0:03:00]} 10. O-O {[%clk 0:02:54]}  f5 {[%clk 0:03:00]} 11. a4 {[%clk 0:02:49]}  a5 {[%clk 0:02:59]} 12. e4 {[%clk 0:02:38]}  f4 {[%clk 0:02:59]} 13. Nc4 {[%clk 0:02:37]}  g5 {[%clk 0:02:56]} 14. dxe5 {[%clk 0:02:28]}  Ncxe5 {[%clk 0:02:47]} 15. Nfxe5 {[%clk 0:02:27]}  Nxe5 {[%clk 0:02:41]} 16. Nxe5 {[%clk 0:02:27]}  dxe5 {[%clk 0:02:35]} 17. Qb3+ {[%clk 0:02:22]}  Kh8 {[%clk 0:02:34]} 18. Rfd1 {[%clk 0:02:23]}  Qe7 {[%clk 0:02:34]} 19. f3 {[%clk 0:02:22]}  c6 {[%clk 0:02:31]} 20. Kf1 {[%clk 0:02:21]}  Be6 {[%clk 0:02:30]} 21. Bc4 {[%clk 0:02:21]}  Bc8 {[%clk 0:02:14]} 22. Bg1 {[%clk 0:02:16]}  h5 {[%clk 0:02:15]} 23. Qb6 {[%clk 0:02:17]}  Be6 {[%clk 0:01:29]} 24. Qb3 {[%clk 0:02:06]}  Bc8 {[%clk 0:01:18]} 25. Rd2 {[%clk 0:02:03]}  g4 {[%clk 0:01:17]} 26. hxg4 {[%clk 0:01:59]}  hxg4 {[%clk 0:01:18]} 27. Rad1 {[%clk 0:01:56]}  Qh4 {[%clk 0:00:59]} 28. Be6 {[%clk 0:01:45]}  Qh5 {[%clk 0:00:21]} 29. fxg4 {[%clk 0:01:34]}  Qh1 {[%clk 0:00:11]} 30. Bf5 {[%clk 0:01:32]}  f3 {[%clk 0:00:09]} 31. Qc4 {[%clk 0:01:03]}  Bh6 {[%clk 0:00:07]} 32. Rf2 {[%clk 0:00:58]}  Be3 {[%clk 0:00:06]} 33. Rxf3 {[%clk 0:00:53]}  Qxg1+ {[%clk 0:00:05]} 34. Ke2 {[%clk 0:00:53]}  Qxg2+ {[%clk 0:00:06]} 35. Kxe3 {[%clk 0:00:54]}  Bxf5 {[%clk 0:00:06]} 36. gxf5 {[%clk 0:00:43]}  Rad8 {[%clk 0:00:06]} 37. Qf1 {[%clk 0:00:28]}  Qg5+ {[%clk 0:00:06]} 38. Ke2 {[%clk 0:00:28]}  Rxd1 {[%clk 0:00:05]} 39. Qxd1 {[%clk 0:00:25]}  Rd8 {[%clk 0:00:06]} 40. Rh3+ {[%clk 0:00:25]}  Kg7 {[%clk 0:00:05]} 41. f6+ {[%clk 0:00:22]}  Qxf6 {[%clk 0:00:03]} 42. Qg1+ {[%clk 0:00:22]}  Kf8 {[%clk 0:00:03]} 43. Rf3 {[%clk 0:00:14]}  Rd2+ {[%clk 0:00:03]} 44. Kxd2 {[%clk 0:00:15]}  Qxf3 {[%clk 0:00:03]} 45. Qc5+ {[%clk 0:00:15]}  Kf7 {[%clk 0:00:03]} 46. Qxe5 {[%clk 0:00:15]}  Qf2+ {[%clk 0:00:03]} 47. Kc1 {[%clk 0:00:12]}  Qe3+ {[%clk 0:00:02]} 48. Kb1 {[%clk 0:00:11]}  Qe1+ {[%clk 0:00:02]} 49. Ka2 {[%clk 0:00:11]}  Qe2 {[%clk 0:00:02]} 50. Qc7+ {[%clk 0:00:10]}  Ke6 {[%clk 0:00:02]} 51. Qxa5 {[%clk 0:00:09]}  Qxe4 {[%clk 0:00:03]} 52. Qb4 {[%clk 0:00:06]}  Qd5+ {[%clk 0:00:03]} 53. Qb3 {[%clk 0:00:06]}  Kd6 {[%clk 0:00:03]} 54. Qxd5+ {[%clk 0:00:06]}  Kxd5 {[%clk 0:00:03]} 55. Kb3 {[%clk 0:00:06]}  Kc5 {[%clk 0:00:04]} 56. Kc2 {[%clk 0:00:06]}  Kc4 {[%clk 0:00:04]} 57. b3+ {[%clk 0:00:05]}  Kd5 {[%clk 0:00:04]} 58. Kd3 {[%clk 0:00:06]}  c5 {[%clk 0:00:04]} 59. Ke3 {[%clk 0:00:05]}  Ke5 {[%clk 0:00:04]} 60. Kf3 {[%clk 0:00:05]}  Kf5 {[%clk 0:00:04]} 61. Ke3 {[%clk 0:00:03]}  Ke5 {[%clk 0:00:04]} 62. Kd3 {[%clk 0:00:04]}  Kd5 {[%clk 0:00:05]} 63. a5 {[%clk 0:00:04]}  Kd6 {[%clk 0:00:04]} 64. Ke4 {[%clk 0:00:03]}  Ke6 {[%clk 0:00:04]} 65. c4 {[%clk 0:00:04]}  Kd6 {[%clk 0:00:02]} 66. Kf5 {[%clk 0:00:04]}  Kd7 {[%clk 0:00:02]} 67. Ke5 {[%clk 0:00:05]}  Kc6 {[%clk 0:00:02]} 68. Ke6 {[%clk 0:00:05]}  b5 {[%clk 0:00:01]} 69. axb6 {[%clk 0:00:06]}  Kxb6 {[%clk 0:00:01]} 70. Kd6 {[%clk 0:00:07]}  Ka5 {[%clk 0:00:01]} 71. Kxc5 {[%clk 0:00:08]}  Ka6 {[%clk 0:00:02]} 72. b4 {[%clk 0:00:07]}  Kb7 {[%clk 0:00:03]} 73. Kd6 {[%clk 0:00:07]}  Kc8 {[%clk 0:00:04]} 74. c5 {[%clk 0:00:07]}  Kb8 {[%clk 0:00:05]} 75. b5 {[%clk 0:00:08]}  Ka8 {[%clk 0:00:05]} 76. Kc7 {[%clk 0:00:08]}  Ka7 {[%clk 0:00:05]} 77. b6+ {[%clk 0:00:09]}  Ka8 {[%clk 0:00:06]} 78. b7+ {[%clk 0:00:09]}  Ka7 {[%clk 0:00:07]} 79. b8=Q+ {[%clk 0:00:10]}  Ka6 {[%clk 0:00:08]} 80. Qb6# {[%clk 0:00:10]} 1-0


[Site "https://www.chess.com"]

[Event "Titled Tuesday Blitz June 13 Late 2023"]
[White "Dudzinski, Pawel"]
[Black "Erdogmus, Yagiz Kaan"]
[WhiteFideId "1117890"]
[BlackFideId "44599790"]
[WhiteElo "2099"]
[BlackElo "2359"]
[Result "0-1"]
[Round "6"]
[TimeControl "180+2"]
[Date "2023.06.13"]
[WhiteClock "0:00:04"]
[BlackClock "0:00:12"]
[Board "25"]

1. e4 {[%clk 0:02:55]}  e6 {[%clk 0:02:56]} 2. d4 {[%clk 0:02:51]}  d5 {[%clk 0:02:56]} 3. Nd2 {[%clk 0:02:52]}  c5 {[%clk 0:02:55]} 4. exd5 {[%clk 0:02:51]}  Qxd5 {[%clk 0:02:55]} 5. Ngf3 {[%clk 0:02:47]}  cxd4 {[%clk 0:02:55]} 6. Bc4 {[%clk 0:02:45]}  Qd7 {[%clk 0:02:54]} 7. Nb3 {[%clk 0:02:41]}  Nc6 {[%clk 0:02:53]} 8. Nbxd4 {[%clk 0:02:39]}  Nxd4 {[%clk 0:02:48]} 9. Qxd4 {[%clk 0:02:40]}  Qxd4 {[%clk 0:02:47]} 10. Nxd4 {[%clk 0:02:41]}  Bd7 {[%clk 0:02:46]} 11. Bb5 {[%clk 0:02:38]}  O-O-O {[%clk 0:02:40]} 12. Bxd7+ {[%clk 0:02:36]}  Rxd7 {[%clk 0:02:41]} 13. Be3 {[%clk 0:02:33]}  Bc5 {[%clk 0:02:38]} 14. O-O-O {[%clk 0:02:12]}  Nf6 {[%clk 0:02:32]} 15. Nf5 {[%clk 0:02:08]}  Bxe3+ {[%clk 0:01:01]} 16. Nxe3 {[%clk 0:02:09]}  Rhd8 {[%clk 0:01:00]} 17. Rxd7 {[%clk 0:02:06]}  Rxd7 {[%clk 0:01:01]} 18. Rd1 {[%clk 0:02:06]}  Kc7 {[%clk 0:00:53]} 19. Rxd7+ {[%clk 0:02:05]}  Nxd7 {[%clk 0:00:54]} 20. Kd2 {[%clk 0:02:05]}  Kd6 {[%clk 0:00:54]} 21. f4 {[%clk 0:01:49]}  b5 {[%clk 0:00:51]} 22. Kd3 {[%clk 0:01:45]}  Nc5+ {[%clk 0:00:44]} 23. Kd4 {[%clk 0:01:44]}  f6 {[%clk 0:00:41]} 24. c4 {[%clk 0:01:08]}  b4 {[%clk 0:00:41]} 25. Nc2 {[%clk 0:01:04]}  a5 {[%clk 0:00:40]} 26. b3 {[%clk 0:00:36]}  h6 {[%clk 0:00:36]} 27. g3 {[%clk 0:00:28]}  g5 {[%clk 0:00:35]} 28. fxg5 {[%clk 0:00:26]}  hxg5 {[%clk 0:00:34]} 29. h4 {[%clk 0:00:25]}  gxh4 {[%clk 0:00:31]} 30. gxh4 {[%clk 0:00:26]}  f5 {[%clk 0:00:32]} 31. Ke3 {[%clk 0:00:21]}  Ke5 {[%clk 0:00:28]} 32. Kf3 {[%clk 0:00:21]}  Kf6 {[%clk 0:00:23]} 33. Nd4 {[%clk 0:00:20]}  e5 {[%clk 0:00:22]} 34. Nc6 {[%clk 0:00:20]}  e4+ {[%clk 0:00:20]} 35. Ke3 {[%clk 0:00:19]}  a4 {[%clk 0:00:20]} 36. Nxb4 {[%clk 0:00:19]}  axb3 {[%clk 0:00:20]} 37. axb3 {[%clk 0:00:18]}  Nxb3 {[%clk 0:00:21]} 38. Kf4 {[%clk 0:00:16]}  Nc5 {[%clk 0:00:18]} 39. Nd5+ {[%clk 0:00:17]}  Ke6 {[%clk 0:00:19]} 40. Ne3 {[%clk 0:00:16]}  Nd3+ {[%clk 0:00:19]} 41. Kg5 {[%clk 0:00:15]}  f4 {[%clk 0:00:19]} 42. Ng4 {[%clk 0:00:13]}  e3 {[%clk 0:00:18]} 43. Nh2 {[%clk 0:00:10]}  Ke5 {[%clk 0:00:17]} 44. h5 {[%clk 0:00:09]}  e2 {[%clk 0:00:17]} 45. h6 {[%clk 0:00:08]}  Ke4 {[%clk 0:00:16]} 46. h7 {[%clk 0:00:07]}  Ne5 {[%clk 0:00:16]} 47. Kf6 {[%clk 0:00:04]}  Ng4+ {[%clk 0:00:10]} 48. Nxg4 {[%clk 0:00:02]}  e1=Q {[%clk 0:00:10]} 49. Kg7 {[%clk 0:00:01]}  Qa1+ {[%clk 0:00:11]} 50. Nf6+ {[%clk 0:00:01]}  Kf5 {[%clk 0:00:11]} 51. h8=Q {[%clk 0:00:02]}  Qxf6+ {[%clk 0:00:11]} 52. Kg8 {[%clk 0:00:03]}  Qxh8+ {[%clk 0:00:12]} 53. Kxh8 {[%clk 0:00:04]}  f3 {[%clk 0:00:12]} 54. c5 {[%clk 0:00:04]}  f2 {[%clk 0:00:12]} 55. c6 {[%clk 0:00:05]}  f1=Q {[%clk 0:00:12]} 56. c7 {[%clk 0:00:06]}  Qc4 {[%clk 0:00:13]} 57. c8=Q+ {[%clk 0:00:06]}  Qxc8+ {[%clk 0:00:13]} 58. Kg7 {[%clk 0:00:07]}  Qd7+ {[%clk 0:00:13]} 59. Kh8 {[%clk 0:00:04]}  Kg6 {[%clk 0:00:12]} 0-1


[Site "https://www.chess.com"]

[Event "Titled Tuesday Blitz June 13 Late 2023"]
[White "Mika, Tomasz"]
[Black "Caruana, Fabiano"]
[WhiteFideId "1132970"]
[BlackFideId "2020009"]
[WhiteElo "2186"]
[BlackElo "2832"]
[Result "0-1"]
[Round "6"]
[TimeControl "180+2"]
[Date "2023.06.13"]
[WhiteClock "0:00:00"]
[BlackClock "0:00:58"]
[Board "26"]

1. d4 {[%clk 0:03:00]}  Nf6 {[%clk 0:02:59]} 2. Bf4 {[%clk 0:03:00]}  d6 {[%clk 0:02:59]} 3. Nc3 {[%clk 0:03:00]}  g6 {[%clk 0:02:55]} 4. e4 {[%clk 0:03:00]}  Bg7 {[%clk 0:02:56]} 5. Qd2 {[%clk 0:03:00]}  c6 {[%clk 0:02:53]} 6. O-O-O {[%clk 0:02:59]}  b5 {[%clk 0:02:45]} 7. Bd3 {[%clk 0:02:58]}  b4 {[%clk 0:02:44]} 8. Nce2 {[%clk 0:02:57]}  a5 {[%clk 0:02:44]} 9. Bh6 {[%clk 0:02:57]}  Bxh6 {[%clk 0:02:40]} 10. Qxh6 {[%clk 0:02:58]}  Ba6 {[%clk 0:02:32]} 11. e5 {[%clk 0:02:50]}  Nd5 {[%clk 0:02:29]} 12. Qg7 {[%clk 0:02:40]}  Rf8 {[%clk 0:02:29]} 13. Qxh7 {[%clk 0:02:34]}  a4 {[%clk 0:02:29]} 14. e6 {[%clk 0:02:29]}  fxe6 {[%clk 0:02:29]} 15. Qxg6+ {[%clk 0:02:26]}  Kd7 {[%clk 0:02:30]} 16. Nf3 {[%clk 0:02:20]}  Bxd3 {[%clk 0:02:08]} 17. Rxd3 {[%clk 0:02:19]}  Na6 {[%clk 0:02:09]} 18. Re1 {[%clk 0:02:11]}  b3 {[%clk 0:02:09]} 19. a3 {[%clk 0:02:00]}  bxc2 {[%clk 0:02:08]} 20. Rd2 {[%clk 0:01:40]}  Qb6 {[%clk 0:02:00]} 21. Rxc2 {[%clk 0:01:17]}  Nac7 {[%clk 0:01:57]} 22. Nc3 {[%clk 0:01:11]}  Nxc3 {[%clk 0:01:48]} 23. Rxc3 {[%clk 0:01:07]}  Rg8 {[%clk 0:01:37]} 24. Qe4 {[%clk 0:00:58]}  Rab8 {[%clk 0:01:37]} 25. Re2 {[%clk 0:00:54]}  Qb5 {[%clk 0:01:37]} 26. Kb1 {[%clk 0:00:35]}  Rb6 {[%clk 0:01:23]} 27. Rec2 {[%clk 0:00:27]}  Nd5 {[%clk 0:01:21]} 28. Rc4 {[%clk 0:00:23]}  Qa6 {[%clk 0:01:10]} 29. h4 {[%clk 0:00:19]}  Rgb8 {[%clk 0:01:05]} 30. Ng5 {[%clk 0:00:17]}  Rxb2+ {[%clk 0:01:05]} 31. Rxb2 {[%clk 0:00:16]}  Rxb2+ {[%clk 0:01:06]} 32. Kxb2 {[%clk 0:00:16]}  Qxc4 {[%clk 0:01:05]} 33. Qxe6+ {[%clk 0:00:16]}  Kc7 {[%clk 0:01:05]} 34. Qh3 {[%clk 0:00:07]}  Qxd4+ {[%clk 0:01:02]} 35. Kc2 {[%clk 0:00:07]}  Qxf2+ {[%clk 0:01:01]} 36. Kc1 {[%clk 0:00:06]}  Qe1+ {[%clk 0:00:59]} 37. Kc2 {[%clk 0:00:05]}  Qe2+ {[%clk 0:00:59]} 38. Kc1 {[%clk 0:00:05]}  Ne3 {[%clk 0:00:58]} 39. Qxe3 {[%clk 0:00:01]}  Qxe3+ {[%clk 0:00:58]} 40. Kc2 {[%clk 0:00:00]}  Qe2+ {[%clk 0:00:58]} 0-1


[Site "https://www.chess.com"]

[Event "Titled Tuesday Blitz June 13 Late 2023"]
[White "Firouzja, Alireza"]
[Black "Oro, Faustino"]
[WhiteFideId "12573981"]
[BlackFideId "20000197"]
[WhiteElo "2896"]
[BlackElo "1984"]
[Result "1-0"]
[Round "6"]
[TimeControl "180+2"]
[Date "2023.06.13"]
[WhiteClock "0:01:57"]
[BlackClock "0:00:14"]
[Board "28"]

1. d4 {[%clk 0:03:00]}  Nf6 {[%clk 0:02:59]} 2. Bg5 {[%clk 0:03:01]}  e6 {[%clk 0:02:58]} 3. e4 {[%clk 0:02:59]}  h6 {[%clk 0:02:58]} 4. Bxf6 {[%clk 0:02:59]}  Qxf6 {[%clk 0:02:59]} 5. Qd2 {[%clk 0:02:58]}  d6 {[%clk 0:02:55]} 6. Nc3 {[%clk 0:02:52]}  g6 {[%clk 0:02:36]} 7. f4 {[%clk 0:02:48]}  Bg7 {[%clk 0:02:36]} 8. Nf3 {[%clk 0:02:48]}  Qe7 {[%clk 0:02:33]} 9. O-O-O {[%clk 0:02:47]}  Nd7 {[%clk 0:02:34]} 10. h4 {[%clk 0:02:46]}  Nf6 {[%clk 0:02:28]} 11. e5 {[%clk 0:02:46]}  Ng4 {[%clk 0:02:12]} 12. h5 {[%clk 0:02:46]}  g5 {[%clk 0:01:32]} 13. g3 {[%clk 0:02:38]}  f5 {[%clk 0:01:11]} 14. exd6 {[%clk 0:02:17]}  cxd6 {[%clk 0:01:04]} 15. Bc4 {[%clk 0:02:16]}  Bd7 {[%clk 0:01:02]} 16. Rhe1 {[%clk 0:02:14]}  O-O-O {[%clk 0:00:42]} 17. Bxe6 {[%clk 0:02:05]}  Bxe6 {[%clk 0:00:42]} 18. d5 {[%clk 0:02:06]}  Qc7 {[%clk 0:00:43]} 19. dxe6 {[%clk 0:02:05]}  Bxc3 {[%clk 0:00:41]} 20. Qxc3 {[%clk 0:01:55]}  Qxc3 {[%clk 0:00:40]} 21. bxc3 {[%clk 0:01:56]}  gxf4 {[%clk 0:00:35]} 22. gxf4 {[%clk 0:01:56]}  Nf6 {[%clk 0:00:28]} 23. Nh4 {[%clk 0:01:54]}  Nxh5 {[%clk 0:00:24]} 24. Nxf5 {[%clk 0:01:54]}  Nxf4 {[%clk 0:00:16]} 25. e7 {[%clk 0:01:54]}  Rde8 {[%clk 0:00:14]} 26. Nxd6+ {[%clk 0:01:54]}  Kc7 {[%clk 0:00:14]} 27. Nxe8+ {[%clk 0:01:55]}  Rxe8 {[%clk 0:00:15]} 28. Re4 {[%clk 0:01:55]}  Ng6 {[%clk 0:00:15]} 29. Rc4+ {[%clk 0:01:56]}  Kb6 {[%clk 0:00:14]} 30. Rd6+ {[%clk 0:01:56]}  Kb5 {[%clk 0:00:14]} 31. Rb4+ {[%clk 0:01:57]}  Kc5 {[%clk 0:00:14]} 32. Rxg6 {[%clk 0:01:57]}  Rxe7 {[%clk 0:00:14]} 33. Rxh6 {[%clk 0:01:57]} 1-0


[Site "https://www.chess.com"]